Cogmind - Beta 9.6 @@@ ROGUE MODE // 2020.08.21 @ 08:52:57 Player: josiah Result: Self-destructed Performance ------------- Evolutions (6) 3000 Regions Visited (7) 1400 Robots Destroyed (93) 465 Value Destroyed (3885) 3885 Prototype IDs (5) 100 Alien Tech Used (0) 0 Bonus (0) 0 TOTAL SCORE: 8850 Bonus ------- None Cogmind --------- Core Integrity 544/1150 Matter 80/300 Energy 100/100 System Corruption 10% Temperature Cool (9) Movement Core (1350) Ox26 Location -4/Factory Parts ------- > --- POWER (2) -------- (None) > --- PROPULSION (4) --- (None) > --- UTILITY (9) ------ Large Storage Unit High-capacity Storage Unit High-capacity Storage Unit Advanced Signal Interpreter Improved Terrain Scan Processor Advanced Targeting Computer > --- WEAPON (4) ------- (None) > --- INVENTORY (26) --- Titanium Leg Advanced Cooling System Advanced Cooling System Advanced Coolant Injector Large Storage Unit Large Storage Unit Energy Well (500) Energy Well (500) Large Matter Pod (150) Advanced Signal Interpreter Advanced Terrain Scanner Improved Kinecellerator Advanced Transmission Jammer Medium Reactive Plating Long-range Tractor Beam Coil Gun Hypervelocity Gauss Rifle Hypervelocity Coil Gun Hypervelocity Coil Gun Hypervelocity Coil Gun Peak State ------------ > --- POWER ------------ Heavy Deuterium Engine Antimatter Reactor > --- PROPULSION ------- Compact Wheel Armored Huge Wheel Centrium Wheel > --- UTILITY ---------- Large Storage Unit High-capacity Storage Unit High-capacity Storage Unit Advanced Signal Interpreter Improved Terrain Scan Processor Advanced Targeting Computer Improved Kinecellerator Medium Reactive Plating Improved Integration Mediator > --- WEAPON ----------- Flak Gun Hypervelocity Gauss Rifle Hypervelocity Coil Gun Hypervelocity Coil Gun > --- INVENTORY -------- Titanium Leg Improved Carbon-fiber Leg Compact Wheel Compact Wheel Advanced Cooling System Advanced Cooling System Large Storage Unit Large Storage Unit Energy Well Energy Well Large Matter Pod Advanced Sensor Array Advanced Sensor Array Advanced Signal Interpreter Advanced Terrain Scanner Advanced Terrain Scanner Long-range Tractor Beam Coil Gun Hypervelocity Coil Gun Hypervelocity Coil Gun Smartbomb Launcher Katana Katana Katana [Rating: 85] Favorites ----------- Power Heavy Deuterium Engine Engine Heavy Deuterium Engine Power Core Micro Nuclear Core Reactor Antimatter Reactor Propulsion Compact Wheel Treads Light Treads Leg Aluminum Leg Wheel Compact Wheel Utility High-capacity Storage Unit Device Advanced Sensor Array Storage High-capacity Storage Unit Processor Advanced Signal Interpreter Protection Improved Medium Armor Plating Weapon Autogun Energy Gun Gatling Laser Energy Cannon Advanced Beam Cannon Ballistic Gun Autogun Launcher Smartbomb Launcher Slashing Weapon Katana Build | -11 -10 -9 -8 -7 -6 -5 -4 ------- Run | Scr Mat Mat Mat Fac Fac Fac Fac Slots Evolved 12 | . . 2 2 2 2 2 2 Power 1 | . . . . . . . 1 Propulsion 2 | . . . . . 1 1 . Utility 7 | . . . 2 2 1 1 1 Weapon 2 | . . 2 . . . . . Parts Attached 152 | 7 10 20 13 18 34 13 37 Power 10 | 1 . 2 . 3 2 . 2 Engine 7 | 1 . 2 . 2 2 . . Core 2 | . . . . 1 . . 1 Reactor 1 | . . . . . . . 1 Propulsion 28 | 2 4 4 2 1 6 2 7 Treads 6 | . 1 2 1 1 1 . . Leg 7 | . 3 2 . . 1 1 . Wheel 15 | 2 . . 1 . 4 1 7 Hover . | . . . . . . . . Flight . | . . . . . . . . Utility 50 | 2 4 1 8 6 10 9 10 Device 30 | 1 2 1 3 3 6 7 7 Storage 7 | 1 2 . 3 . 1 . . Processor 3 | . . . 1 1 . . 1 Hackware . | . . . . . . . . Protection 10 | . . . 1 2 3 2 2 Artifact . | . . . . . . . . Weapon 64 | 2 2 13 3 8 16 2 18 Energy Gun 19 | . 1 7 2 2 7 . . Energy Cannon 2 | . . 2 . . . . . Ballistic Gun 29 | 2 1 4 1 5 6 1 9 Ballistic Cannon . | . . . . . . . . Launcher 4 | . . . . . . . 4 Special Weapon . | . . . . . . . . Impact Weapon . | . . . . . . . . Slashing Weapon 10 | . . . . 1 3 1 5 Piercing Weapon . | . . . . . . . . Special Melee Weapon . | . . . . . . . . Unidentified Prototypes 5 | . . 3 . . 2 . . Parts Lost 56 | . 5 11 2 7 10 1 20 Power 3 | . . . . 1 . . 2 Propulsion 12 | . 2 . . . 2 1 7 Utility 8 | . 1 1 . . 2 . 4 Weapon 33 | . 2 10 2 6 6 . 7 Highest Loss Streak 8 | . 3 3 2 3 4 1 8 Average Slot Usage (%) 93 | . 95 87 99 99 94 91 89 Engine 6 | . 14 11 9 5 6 5 4 Treads 3 | . . 2 13 7 3 . . Leg 3 | . 12 19 . . . . . Wheel 9 | . 13 . 5 7 12 13 15 Device 12 | . 11 10 9 12 12 15 12 Storage 15 | . 14 11 17 15 15 17 15 Processor 10 | . . . 5 15 13 11 14 Protection 2 | . . . 3 2 3 1 1 Energy Gun 4 | . 4 17 15 3 1 . . Ballistic Gun 19 | . 22 15 21 25 19 17 13 Slashing Weapon 2 | . . . . . 3 4 4 Naked Turns . | . . . . . . . . Heaviest Build 157 | 14 42 51 95 89 110 137 157 Greatest Support 64 | 26 26 40 40 20 44 60 64 Greatest Overweight (x) 7 | 1 4 2 7 7 7 3 5 Average Overweight (x) 2 | . 1 1 3 6 3 1 2 Largest Inventory Capacity 26 | 6 16 12 20 20 26 26 26 Average Capacity 20 | 5 10 12 19 20 22 26 26 Most Carried 26 | 3 8 12 20 20 26 26 26 Average Carried 19 | 2 5 9 18 19 21 25 24 Final Capacity 26 | 6 12 12 20 20 26 26 26 Final Carried 26 | 3 8 12 20 20 26 26 20 Class Distribution -------------------- 32% | Hauler-Assassin 18% | Hauler-Skirmisher 16% | Scavenger-Skirmisher 7% | Scavenger-Gunner 6% | Mutant 5% | Hauler-Mutant 3% | Scavenger-Tank Dominant Class ---------------- Mutant | -10/Materials Scavenger-Gunner | -9/Materials Hauler-Skirmisher | -8/Materials Scavenger-Skirmisher | -7/Factory Hauler-Assassin | -6/Factory Hauler-Assassin | -5/Factory Hauler-Assassin | -4/Factory Resources | -11 -10 -9 -8 -7 -6 -5 -4 ----------- Run | Scr Mat Mat Mat Fac Fac Fac Fac Matter Collected 3612 | 266 277 459 223 607 633 509 638 Remotely . | . . . . . . . . Salvage Created 4063 | 86 277 696 374 574 824 278 954 Parts 260 | 1 19 39 16 35 51 25 74 Haulers Intercepted 2 | . . 2 . . . . . Recyclers Shooed 7 | . . . . . 4 3 . Parts Field Recycled . | . . . . . . . . Retrieved Matter . | . . . . . . . . Parts Self-Destructed . | . . . . . . . . Prevented . | . . . . . . . . Kills | -11 -10 -9 -8 -7 -6 -5 -4 ------- Run | Scr Mat Mat Mat Fac Fac Fac Fac Combat Hostiles Destroyed 78 | . 7 15 7 13 13 5 18 Melee 2 | . . . . . . . 2 Guns 64 | . 7 15 7 12 10 4 9 AOE 12 | . . . . 1 3 1 7 Classes Destroyed 11 | 1 1 4 1 2 . . 2 Worker 5 | . . 1 . 1 . 1 2 Builder 5 | . . . . . . . 5 Hauler 2 | . . 2 . . . . . Recycler 3 | 1 . . . . 2 . . Swarmer 14 | . . 4 . 4 4 . 2 Grunt 31 | . 7 9 2 4 3 . 6 Brawler 1 | . . . 1 . . . . Duelist 1 | . . . . . . . 1 Sentry 9 | . . 2 4 1 1 . 1 Hunter 2 | . . . . 2 . . . Programmer 20 | . . . . 2 5 5 8 Best Kill Streak 9 | 1 2 4 4 5 4 2 9 Combat Bots Only 5 | . 2 4 4 5 4 2 5 Max Kills in Single Turn 3 | 1 1 1 1 1 3 1 2 Gunslinging . | . . . . . . . . Exploded 3 | . . . . 1 3 1 1 Melee 1 | . . . . . . . 1 Uniques/NPCs Destroyed . | . . . . . . . . Combat | -11 -10 -9 -8 -7 -6 -5 -4 -------- Run | Scr Mat Mat Mat Fac Fac Fac Fac Damage Taken 7977 | . 526 924 484 1319 1041 447 3236 Core 1095 | . 82 148 57 103 79 20 606 Absorbed by Shields . | . . . . . . . . Core Remaining (%) 84 | 100 67 63 89 85 90 98 . Volleys Fired 249 | 5 29 60 18 39 40 16 42 Largest 4 | 2 2 4 4 4 4 4 4 Hottest 229 | 40 70 181 206 206 229 119 131 Shots Fired 727 | 10 57 147 72 140 127 51 123 Gun 716 | 10 57 147 72 140 127 51 112 Cannon . | . . . . . . . . Launcher 11 | . . . . . . . 11 Special . | . . . . . . . . Kinetic 593 | 10 48 81 45 125 121 51 112 Thermal 107 | . 9 66 18 10 4 . . Explosive 11 | . . . . . . . 11 Electromagnetic 16 | . . . 9 5 2 . . Robot Hit Streak 16 | 6 11 11 14 16 13 7 15 Robot Miss Streak 9 | 1 3 4 9 6 5 4 6 Penetration Max 1 | . . . . . . 1 1 Secondary Targets 15 | . . 3 1 5 1 1 4 Max Gunslinging Chain 1 | . . 1 1 1 1 1 1 Shots Hit Robots 517 | 8 39 109 59 81 89 39 93 Core Hits 245 | 2 16 35 21 33 40 23 75 Critical Hits 23 | . 1 . . 1 3 6 12 Critical Kills 8 | . . . . 1 2 3 2 Critical Parts Destroyed 15 | . 1 . . . 1 3 10 Melee Attacks 85 | . . . . 1 20 27 37 Impact . | . . . . . . . . Slashing 85 | . . . . 1 20 27 37 Piercing . | . . . . . . . . Sneak Attacks 3 | . . . . . 1 2 . Combat Hostiles . | . . . . . . . . Follow-up Attacks 4 | . . . . . . . 4 Damage Inflicted 9829 | 103 517 1195 721 1130 1922 1002 3239 Guns 6747 | 103 517 1195 721 1016 1386 571 1238 Cannons . | . . . . . . . . Explosions 2412 | . . . . 114 429 248 1621 Melee 670 | . . . . . 107 183 380 Ramming . | . . . . . . . . Kinetic 5194 | 103 416 503 336 759 1268 571 1238 Thermal 2131 | . 101 692 266 311 523 238 . Explosive 1621 | . . . . . . . 1621 Electromagnetic 213 | . . . 119 60 24 10 . Impact . | . . . . . . . . Slashing 670 | . . . . . 107 183 380 Piercing . | . . . . . . . . Highest Corruption 10 | . . 2 . 2 4 4 10 Average Corruption 2 | . . 1 . 1 2 3 4 Corruption Purged . | . . . . . . . . Effects 84 | . . 4 . 10 23 24 23 Message Errors 19 | . . 2 . 1 5 7 4 Matter Fused 15 | . . . . . 5 6 4 Heat Flow Errors 5 | . . . . 3 1 . 1 Energy Discharges 9 | . . 2 . 2 2 2 1 Parts Rejected 1 | . . . . . . . 1 Data Loss (minor) 17 | . . . . . 6 8 3 Data Loss (major) 1 | . . . . . . . 1 Misfires 1 | . . . . . . . 1 Misdirections 1 | . . . . . . . 1 Targeting Errors 11 | . . . . 4 3 1 3 Weapon Failures 4 | . . . . . 1 . 3 Overload Shots . | . . . . . . . . Overflow Damage 415 | . . . . . 275 103 37 Projectiles . | . . . . . . . . Explosions 291 | . . . . . 208 46 37 Melee 124 | . . . . . 67 57 . Knockbacks . | . . . . . . . . Impact . | . . . . . . . . Kinetic . | . . . . . . . . Secondary . | . . . . . . . . Self-Inflicted Damage 322 | . . . . 38 209 54 21 Shots 7 | . . . . 1 2 2 2 Rammed . | . . . . . . . . Targets Rammed . | . . . . . . . . Kicked . | . . . . . . . . Crushed . | . . . . . . . . Highest Temperature 432 | . 14 347 233 432 76 57 312 Average Temperature 86 | . 6 76 92 123 26 17 115 Received Heat Transfer 1488 | . 279 405 171 135 81 . 417 Siege Activations . | . . . . . . . . Robots Corrupted . | . . . . . . . . Combat Hostiles . | . . . . . . . . Parts Fried . | . . . . . . . . Impact Corruptions . | . . . . . . . . Robots Melted . | . . . . . . . . Combat Hostiles . | . . . . . . . . Parts Melted 7 | . . 2 . 2 1 . 2 Heat Transferred 3669 | . 296 1674 600 550 449 100 . Parts Sabotaged . | . . . . . . . . Parts Stolen . | . . . . . . . . Parts Stripped . | . . . . . . . . Power Chain Reactions 1 | . . . . 1 . . . Missiles Intercepted . | . . . . . . . . Alert | -11 -10 -9 -8 -7 -6 -5 -4 ------- Run | Scr Mat Mat Mat Fac Fac Fac Fac Peak Influence 383 | 5 170 226 205 154 230 89 383 Average Influence 64 | . 91 97 51 29 88 29 101 Maximum Alert Level 1 | . . 1 1 . 1 . 1 Low Security (%) 92 | 100 100 95 93 100 85 100 75 Level 1 7 | . . 4 6 . 14 . 24 Level 2 . | . . . . . . . . Level 3 . | . . . . . . . . Level 4 . | . . . . . . . . Level 5 . | . . . . . . . . High Security . | . . . . . . . . Max Security . | . . . . . . . . Squads Dispatched 28 | . 2 2 2 7 3 4 8 Investigation 2 | . . . . 1 . 1 . Extermination 13 | . . . . 2 3 3 5 Reinforcement 10 | . 2 2 2 1 . . 3 Assault . | . . . . . . . . Garrison 3 | . . . . 3 . . . Intercept . | . . . . . . . . Construction Impeded 3 | . . . . . . . 3 Haulers Reinforced . | . . . . . . . . Stealth | -11 -10 -9 -8 -7 -6 -5 -4 --------- Run | Scr Mat Mat Mat Fac Fac Fac Fac Distress Signals 9 | . 2 2 1 . . . 4 Communications Jammed . | . . . . . . . . Distress Signals . | . . . . . . . . Times Spotted 128 | . 12 22 17 17 16 6 38 Peak Tracking Total 11 | . 4 5 4 5 4 2 11 Tactical Retreats 8 | . . . 1 1 . 1 5 Traps | -11 -10 -9 -8 -7 -6 -5 -4 ------- Run | Scr Mat Mat Mat Fac Fac Fac Fac Traps Triggered 5 | . 1 2 . . 1 . 1 Indirectly . | . . . . . . . . Trap Hack Attempts . | . . . . . . . . Triggered . | . . . . . . . . Disarmed . | . . . . . . . . Reprogrammed . | . . . . . . . . Reused . | . . . . . . . . Traps Extracted . | . . . . . . . . Installed . | . . . . . . . . Triggered . | . . . . . . . . Machines | -11 -10 -9 -8 -7 -6 -5 -4 ---------- Run | Scr Mat Mat Mat Fac Fac Fac Fac Machines Disabled 8 | . . . . . 3 3 2 Max in Single Turn 3 | . . . . . 3 2 1 Machines Sabotaged . | . . . . . . . . Garrisons Compromised . | . . . . . . . . Overloaded Fab Kills . | . . . . . . . . Fab Network Shutdowns . | . . . . . . . . Hacking | -11 -10 -9 -8 -7 -6 -5 -4 --------- Run | Scr Mat Mat Mat Fac Fac Fac Fac Machines Accessed 15 | . . 1 3 2 6 3 . Terminals 11 | . . 1 3 1 3 3 . Fabricators 1 | . . . . . 1 . . Repair Stations . | . . . . . . . . Recycling Units 1 | . . . . 1 . . . Scanalyzers . | . . . . . . . . Garrison Access 2 | . . . . . 2 . . Total Hacks 35 | . . 2 10 4 12 7 . Successful 16 | . . 2 4 1 5 4 . Failed 19 | . . . 6 3 7 3 . Catastrophic 4 | . . . . . 2 2 . Database Lockouts . | . . . . . . . . Manual 21 | . . 1 7 2 5 6 . Terminals 29 | . . 2 10 2 8 7 . Fabricators 1 | . . . . . 1 . . Repair Stations . | . . . . . . . . Recycling Units 2 | . . . . 2 . . . Scanalyzers . | . . . . . . . . Garrison Access 3 | . . . . . 3 . . Terminal Hacks 6 | . . 1 1 . 1 3 . Unreport Threat 2 | . . . . . . 2 . Transport Status 1 | . . 1 . . . . . Zone Layout 3 | . . . 1 . 1 1 . Fabricator Hacks 1 | . . . . . 1 . . Build 1 | . . . . . 1 . . Repair Station Hacks . | . . . . . . . . Recycling Unit Hacks . | . . . . . . . . Scanalyzer . | . . . . . . . . Garrison Access Hacks . | . . . . . . . . Unauthorized Hacks 9 | . . 1 3 1 3 1 . Terminals 9 | . . 1 3 1 3 1 . Track 1 | . . . 1 . . . . Botnet 8 | . . 1 2 1 3 1 . Fabricators . | . . . . . . . . Repair Stations . | . . . . . . . . Recycling Units . | . . . . . . . . Scanalyzers . | . . . . . . . . Garrison Access . | . . . . . . . . Data Cores Recovered . | . . . . . . . . Used . | . . . . . . . . Hacking Detections 13 | . . 1 3 2 5 2 . Full Trace Events 2 | . . . . 1 . 1 . Feedback Events . | . . . . . . . . Feedback Blocked . | . . . . . . . . Robot Schematics Acquired . | . . . . . . . . Robots Built . | . . . . . . . . Matter . | . . . . . . . . Time . | . . . . . . . . Total Robot Build Rating . | . . . . . . . . Part Schematics Acquired . | . . . . . . . . Parts Built 2 | . . . . . 2 . . Matter 256 | . . . . . 256 . . Time 128 | . . . . . 128 . . Total Part Build Rating 16 | . . . . . 16 . . Parts Repaired . | . . . . . . . . Time . | . . . . . . . . Parts Recycled . | . . . . . . . . Recycled Matter . | . . . . . . . . Retrieved Matter . | . . . . . . . . Retrieved Components . | . . . . . . . . Parts Scanalyzed . | . . . . . . . . Part Schematics Acquired . | . . . . . . . . Parts Damaged . | . . . . . . . . Bothacking | -11 -10 -9 -8 -7 -6 -5 -4 ------------ Run | Scr Mat Mat Mat Fac Fac Fac Fac Used RIF Installer . | . . . . . . . . Robots Hacked . | . . . . . . . . Non-combat . | . . . . . . . . Combat . | . . . . . . . . Robot Hacks Applied . | . . . . . . . . Relay Couplers Released . | . . . . . . . . Robots Rewired 1 | . . . . 1 . . . Allies Hacked . | . . . . . . . . Hacks Repelled . | . . . . . . . . Allies | -11 -10 -9 -8 -7 -6 -5 -4 -------- Run | Scr Mat Mat Mat Fac Fac Fac Fac Total Allies 1 | . . . . 1 . . . Largest Group 1 | . . . . 1 . . . Highest-Rated Group 12 | . . . . 12 . . . Highest-Rated Ally 12 | . . . . 12 . . . Total Orders . | . . . . . . . . Ally Attacks 8 | . . . . 8 . . . Total Damage 71 | . . . . 71 . . . Kills . | . . . . . . . . Allies Corrupted . | . . . . . . . . Allies Melted . | . . . . . . . . Intel | -11 -10 -9 -8 -7 -6 -5 -4 ------- Run | Scr Mat Mat Mat Fac Fac Fac Fac Robot Analysis Total . | . . . . . . . . Derelict Logs Recovered . | . . . . . . . . Drone Launches . | . . . . . . . . Drone Recoveries . | . . . . . . . . Exploration | -11 -10 -9 -8 -7 -6 -5 -4 ------------- Run | Scr Mat Mat Mat Fac Fac Fac Fac Turns Passed 8619 | 84 398 958 906 1645 1739 1632 1257 Spaces Moved 3905 | 58 186 393 338 675 780 792 683 Core 8 | 8 . . . . . . . Treads 438 | . 1 62 234 141 . . . Legs 396 | . 65 331 . . . . . Wheels 3063 | 50 120 . 104 534 780 792 683 Hover . | . . . . . . . . Flight . | . . . . . . . . Fastest Speed 50 | 50 90 150 160 150 106 110 110 Average Speed 141 | 86 125 174 194 173 130 116 117 Slowest Speed 240 | 100 240 180 240 240 160 130 140 Overloaded Moves . | . . . . . . . . Propulsion Burnouts . | . . . . . . . . Robots Hopped . | . . . . . . . . Cave-ins Triggered . | . . . . . . . . Exploration Rate (%) 24 | 4 43 26 38 12 25 27 19 Regions Visited 7 Branch Regions . Pre-discovered Areas . | . . . . . . . . Known Exits Taken 4 | . . . 1 1 1 1 . Unknown Exits Taken 3 | 1 1 1 . . . . . Scrap Searched . | . . . . . . . . Spaces Dug 57 | . . . . 1 17 23 16 Terrain Destroyed 172 | . . . . 5 63 44 60 Melee 57 | . . . . 1 17 23 16 Projectile . | . . . . . . . . AOE 115 | . . . . 4 46 21 44 Actions | -11 -10 -9 -8 -7 -6 -5 -4 --------- Run | Scr Mat Mat Mat Fac Fac Fac Fac Total 6343 | 78 291 544 543 1068 1397 1427 995 Wait 1802 | 6 59 53 148 307 486 560 183 Move 3898 | 57 185 392 337 674 779 791 683 Hop . | . . . . . . . . Pick Up 79 | 3 6 10 16 10 18 11 5 Fast Attach 48 | 7 3 14 2 8 11 . 3 Attach 44 | . 3 4 2 4 11 3 17 Detach 15 | . 1 . . . 6 . 8 Swap 61 | . 4 3 9 6 12 10 17 Drop 57 | . 1 8 11 10 14 9 4 Fire 249 | 5 29 60 18 39 40 16 42 Melee 81 | . . . . 1 20 27 33 Ram . | . . . . . . . . Kick . | . . . . . . . . Crush . | . . . . . . . . Escape Stasis . | . . . . . . . . Rewire 9 | . . . . 9 . . . Trap . | . . . . . . . . Miscellaneous . | . . . . . . . . Route ------- -11/Scrapyard -10/Materials (discovered 2 exits: *Mat / [*Min]) -9/Materials -8/Materials -7/Factory (discovered 2 exits: *Fac / [Low]) -6/Factory (discovered 2 exits: *Fac x2) -5/Factory -4/Factory History --------- Turn | Location | Event 23 | -11/Scrapyard | Discovered new exit (range 16) 85 | -11/Scrapyard | Entered Materials 135 | -10/Materials | Discovered new exit (range 6) 319 | -10/Materials | Lost 3 parts (2n1w) 333 | -10/Materials | Build established: Mutant 435 | -10/Materials | Discovered new exit (range 16) 483 | -10/Materials | Entered another Materials area 483 | -9/Materials | Evolved 2 slots: Weapon x2 831 | -9/Materials | Lost 3 parts (1u2w) 1384 | -9/Materials | Discovered new exit (range 4) 1441 | -9/Materials | Entered another Materials area 1441 | -8/Materials | Evolved 2 slots: Utility x2 2127 | -8/Materials | Build established: Hauler-Skirmisher 2198 | -8/Materials | Discovered new exit (range 14) 2344 | -8/Materials | Identified exit to Factory 2347 | -8/Materials | Entered Factory 2347 | -7/Factory | Evolved 2 slots: Utility x2 2960 | -7/Factory | Garrison activated, responded to threat 3009 | -7/Factory | Lost 3 parts (3w) 3460 | -7/Factory | Build established: Scavenger-Skirmisher 3741 | -7/Factory | Discovered new exit (range 15) 3763 | -7/Factory | Identified exit to Factory 3886 | -7/Factory | Discovered new exit (range 20) 3992 | -7/Factory | Entered another Factory area 3992 | -6/Factory | Evolved 2 slots: Propulsion x1, Utility x1 4216 | -6/Factory | Fabricated Imp. Remote Force Field? 4911 | -6/Factory | Discovered new exit (range 17) 4946 | -6/Factory | Lost 3 parts (1u2w) 5239 | -6/Factory | Lost 4 parts (2n1u1w) 5506 | -6/Factory | Discovered new exit (range 8) 5513 | -6/Factory | Identified exit to Factory 5684 | -6/Factory | Build established: Hauler-Assassin 5731 | -6/Factory | Entered another Factory area 5731 | -5/Factory | Evolved 2 slots: Propulsion x1, Utility x1 6977 | -5/Factory | Discovered new exit (range 5) 6982 | -5/Factory | Identified exit to Factory 7363 | -5/Factory | Entered another Factory area 7363 | -4/Factory | Evolved 2 slots: Power x1, Utility x1 8408 | -4/Factory | System corruption reached 10% 8476 | -4/Factory | Lost 5 parts (2n1u2w) 8565 | -4/Factory | Lost 8 parts (2p2n2u2w) 8600 | -4/Factory | Core integrity fell below 50% 8620 | -4/Factory | Self-destructed Last Messages --------------- 08550_ Katana follow-up attack on G-67 Veteran. 08565_ Katana follow-up attack on S-27 Virus. 08565_ S-27 Virus destroyed. 08570_ Katana follow-up attack on G-67 Veteran. 08570_ Adv. Heat Sink severed. 08576_ Flexi-carbon Leg severed. 08576_ Katana follow-up attack on G-67 Veteran. 08577_ System corrupted: Component data lost. 08581_ G-67 Veteran heat damages Lgt. Antimatter Reactor. 08583_ Acquired 26 matter. 08584_ G-67 Veteran heat short circuits Broken Electrolaser. 08585_ Katana destroyed. 08587_ R-10 Processor collects Flexi-carbon Leg. 08590_ R-10 Processor collects Adv. Heat Sink. 08594_ System corrupted: Katana rejected. 08596_ R-10 Processor collects VTOL Module. 08601_ R-10 Processor collects Katana. 08613_ ALERT: Rogue bot located, Programmers report to Factory Zone 8Q. 08614_ Centrium Wheel destroyed. 08620_ Katana destroyed. Map ----- +----------------------------------------------------+ | # #??? ????? ??? ????? #?? ? ? ###?###?#### | | # #????? ?????? +??? +? "?? #??#### #### | | # ##??? ?? ??? ?""???? #? "??? ####### #### | | # #???? ?? ???? ?"??? # "?? ???##### + | | # ##??????"??#? ""?? #? ??###?#?# # | | # #????? ???????? ? ??+####?####### ##### | | # #????????"??#???? ?? #?#?#?#?#### | | # #?? ? ? ? ?#?#??? ? ????? """ # | | # #?##?#+######## ? ? ?????????"" #^ "" ^ | | # #?#?# ! ? ?? ??? """ + "" | | # #?##? ? ? ? ?? # """ =# | | # ###?# """???##+#?##???? ? ?# """ # | | # #?### R"? # ??? ??#??# ? # """ # | | # ##??# """??#????????????###+## # | | # #??## ????????#????#?## # | | # ##?## ?? ????????????## # | | # ###?# ????????????#?###### ##### ## | | !#### #?? ??????????##?## ###?# ## | | ! ! ^ ? ????????????#??## ##### ## | | =### ^ """"""""" ?+#????############ #####+## | | #+#### """?"""" ??????# =### ## | | ## """"""""" ?????# """ ] ### ## | | ## """"""""" ?##??# """ ### ## | | ## """"""""" ####?# """ #?# ## | | ## """"""""" #??# #?# #"#####" | | ## @#### """ ### "#### | | ## gg / """ #?# ##### | | ## #### """ ! #?# ##### | | ########+###+######## #?## / #?#[##### | | ##### ##############??#####/###### ##### | | ##### """ ###?##?#######?????#= *= + | | ##### """ ###??##?#####??????# ########### | | ##### """ ####??##?####??????+ ####?##?### | | ##### #?####?######??????# ##??#?##### | | ##### """ #?#######?##???????# ###??#?#?## | | # """ ###?# ?? ? ??????# #????#?#### | | # """ ####? "" ????????# #?"?" """?# | | # #####?"? ? ????????# #?????"?" # | | #+##+#########"R ?????????# #???????"?# | | # #?"" ?????????# #????? ?? # | | # #?"" ??????????# #???????? ? | | | + # ? ??#?????# #?????????#### | | # + ?? ????????+ ??????? ?????? | | # # ??? ? ??????# ?????????????? | | ####+### ###???###??????# ?????????????? | | "# # ## ?? ? ??????? ?????????????? | | ## #? ??? ?? ??? ???????????????????????? | | ! ## #? ?? ????? ?????????????????????? | | ## + ? ???? ?? ?????????????????????? | | ###### # ?? ??? ? ????????????????????????? | +----------------------------------------------------+ Best States ------------- Heat Dissipation 64 Energy Generation 34 Energy Capacity 535 Matter Stores 300 Matter Capacity 300 Sight Range 16 Robot Scan Range 16 Terrain Scan Range 20 Terrain Scan Density 110 Armor Coverage 375 Resistance: KI 30 Evasion (%) 42 Targeting Accuracy 8 Recoil Reduction 2 Kinecelleration 40 Item Schematics ----------------- None Robot Schematics ------------------ None Fabricated ------------ Imp. Remote Force Field | x2 | -6/Factory | Preloaded Alien Tech Used ----------------- None Achievements -------------- None Challenges ------------ None Game ------ Seed TrackerAssemblyBuckler Manual? 0 Play Time 01:06:07 Cumulative 133.1 hours Start 2020.08.20 @ 10:23:08 End 2020.08.21 @ 08:52:57 Sessions 7 Manual Loads 0 Difficulty Rogue Special Mode None Game No. 185 Rogue 142 Adventurer 3 Explorer 40 Win Type - Total 2 Types 1/1/0/0/0/0/0 Lore% 50 Gallery% 72 Achievement% 51 Wizard Run 0 Options --------- ASCII 0 Keyboard 0 Movement Mouse Keybinds 0 Fullscreen 2 Font 18/SmallcapsGlow Map View 76x50 Tactical HUD 1 Map Filters NONE Filters NONE Steam 1 RUN: b57cd7f0-5753-4b9f-925c-522e2543fc84